fUST/lending_fUST_20260104
["ID","MTS","AMOUNT","RATE_DAILY","PERIOD"]
[400413829,1767528643514,-1000.0,0.0001996,5]
[400413830,1767528643523,-1000.0,0.0001998,5]
[400413831,1767528643532,-1000.0,0.0001998,5]
[400413832,1767528643543,-72561.82236423,0.0002,2]
[400413833,1767528643552,-223.31,0.0002,5]
[400413834,1767528643563,-151.60459823,0.0002,2]
[400413835,1767528643572,-1000.0,0.0002,5]
[400413836,1767528643582,-1000.0,0.0002,5]
[400413837,1767528643595,-1000.0,0.0002,2]
[400413838,1767528643604,-160.0,0.0002,12]
[400413839,1767528643614,-161.11360208,0.0002,5]
[400413840,1767528643625,-352.2,0.0002,2]
[400413841,1767528643634,-177.424138,0.0002,2]
[400413842,1767528643644,-465.090217,0.0002,2]
[400413843,1767528643654,-465.090217,0.0002,2]
[400413844,1767528643665,-294.216326,0.0002,2]
[400413845,1767528643674,-465.090217,0.0002,2]
[400413846,1767528643684,-294.216326,0.0002,2]
[400413847,1767528643694,-465.090217,0.0002,2]
[400413848,1767528643703,-294.216326,0.0002,2]
[400413849,1767528643712,-294.216326,0.0002,2]
[400413850,1767528643721,-151.0,0.0002,2]
[400413851,1767528643731,-195.491415,0.0002,2]
[400413852,1767528643740,-187.138243,0.0002,2]
[400413853,1767528643749,-187.138243,0.0002,2]
[400413854,1767528643758,-187.138243,0.0002,2]
[400413855,1767528643768,-533.386645,0.0002,2]
[400413856,1767528643778,-430.230833,0.0002,2]
[400413857,1767528643787,-187.138243,0.0002,2]
[400413858,1767528643797,-533.386645,0.0002,2]
[400413859,1767528643891,-430.230833,0.0002,2]
[400413860,1767528643901,-533.386645,0.0002,2]
[400413861,1767528643910,-430.230833,0.0002,2]
[400413862,1767528643919,-533.386645,0.0002,2]
[400413863,1767528643928,-430.230833,0.0002,2]
[400413864,1767528643937,-806.788912,0.0002,2]
[400413865,1767528643947,-806.788912,0.0002,2]
[400413866,1767528643956,-151.0,0.0002,2]
[400413867,1767528643966,-806.788912,0.0002,2]
[400413868,1767528643975,-151.0,0.0002,2]
[400413869,1767528643985,-198.881208,0.0002,2]
[400413870,1767528643994,-806.788912,0.0002,2]
[400413871,1767528644004,-151.0,0.0002,2]
[400413872,1767528644014,-209.486994,0.0002,2]
[400413873,1767528644024,-151.0,0.0002,2]
[400413874,1767528644034,-2116.589615,0.0002,2]
[400413875,1767528644043,-2116.589615,0.0002,2]
[400413876,1767528644054,-2116.589615,0.0002,2]
[400413877,1767528644063,-2116.589615,0.0002,2]
[400413878,1767528644072,-223.829416,0.0002,2]
[400413879,1767528644082,-223.829416,0.0002,2]
[400413880,1767528644093,-223.829416,0.0002,2]
[400413881,1767528644103,-223.829416,0.0002,2]
[400413882,1767528644112,-368.394148,0.0002,2]
[400413883,1767528644122,-368.394148,0.0002,2]
[400413884,1767528644131,-368.394148,0.0002,2]
[400413885,1767528644141,-368.394148,0.0002,2]
[400413886,1767528644150,-151.0,0.0002,2]
[400413887,1767528644160,-151.0,0.0002,2]
[400413888,1767528644169,-151.0,0.0002,2]
[400413889,1767528644179,-151.0,0.0002,2]
[400413890,1767528644189,-2000.0,0.0002,7]
[400413891,1767528644198,-152.811245,0.0002,2]
[400413892,1767528644207,-1106.876099,0.0002,2]
[400413893,1767528644216,-297.420889,0.0002,2]
[400413894,1767528644226,-187.524039,0.0002,2]
[400413895,1767528644235,-1106.876099,0.0002,2]
[400413896,1767528644245,-297.420889,0.0002,2]
[400413897,1767528644254,-1106.876099,0.0002,2]
[400413898,1767528644263,-297.420889,0.0002,2]
[400413899,1767528644273,-151.0,0.0002,2]
[400413900,1767528644282,-1106.876099,0.0002,2]
[400413901,1767528644292,-297.420889,0.0002,2]
[400413902,1767528644301,-151.0,0.0002,2]
[400413903,1767528644311,-151.0,0.0002,2]
[400413904,1767528644320,-151.0,0.0002,2]
[400413905,1767528644330,-813.136537,0.0002,2]
[400413906,1767528644339,-813.136537,0.0002,2]
[400413907,1767528644350,-151.0,0.0002,2]
[400413908,1767528644359,-813.136537,0.0002,2]
[400413909,1767528644369,-1651.635425,0.0002,2]
[400413910,1767528644378,-151.0,0.0002,2]
[400413911,1767528644388,-813.136537,0.0002,2]
[400413912,1767528644398,-1651.635425,0.0002,2]
[400413913,1767528644408,-288.31018,0.0002,2]
[400413914,1767528644418,-312.08592123,0.00020034,2]
[400413915,1767528644428,-454.82744756,0.00020034,4]
[400413916,1767528644438,-454.8319987,0.00020034,4]
[400413917,1767528644449,-718.14626939,0.0002005,2]
[400413918,1767528644459,-703.35,0.000201,7]
[400413919,1767528644468,-13654.30802781,0.00020116,2]
[400413920,1767528644478,-433.8840454,0.0002013,2]
[400413921,1767528644487,-948.899132,0.00020187,2]
[400413922,1767528644496,-339.63469,0.00020223,2]
[400413923,1767528644506,-339.63469,0.00020223,2]
[400413924,1767528644515,-339.63469,0.00020223,2]
[400413925,1767528644525,-339.63469,0.00020223,2]
[400413926,1767528644534,-388.730026,0.00020223,2]
[400413927,1767528644544,-388.730026,0.00020223,2]
[400413928,1767528644553,-388.730026,0.00020223,2]
[400413929,1767528644563,-388.730026,0.00020223,2]
[400413930,1767528644572,-1299.235447,0.00020223,2]
[400413931,1767528644583,-1299.235447,0.00020223,2]
[400413932,1767528644596,-1299.235447,0.00020223,2]
[400413933,1767528644605,-1299.235447,0.00020223,2]
[400413934,1767528644615,-362.648304,0.00020223,2]
[400413935,1767528644626,-362.648304,0.00020223,2]
[400413936,1767528644635,-362.648304,0.00020223,2]
[400413937,1767528644644,-362.648304,0.00020223,2]
[400413938,1767528644655,-557.532317,0.00020223,2]
[400413939,1767528644666,-557.532317,0.00020223,2]
[400413940,1767528644677,-557.532317,0.00020223,2]
[400413941,1767528644686,-176.118044,0.00020223,2]
[400413942,1767528644696,-557.532317,0.00020223,2]
[400413943,1767528644705,-151.0,0.00020223,2]
[400413944,1767528644716,-441.528202,0.00020223,2]
[400413945,1767528644725,-441.528202,0.00020223,2]
[400413946,1767528644735,-177.762758,0.00020223,2]
[400413947,1767528644744,-151.0,0.00020223,2]
[400413948,1767528644754,-441.528202,0.00020223,2]
[400413949,1767528644763,-177.762758,0.00020223,2]
[400413950,1767528644772,-151.0,0.00020223,2]
[400413951,1767528644781,-441.528202,0.00020223,2]
[400413952,1767528644790,-177.762758,0.00020223,2]
[400413953,1767528644800,-151.0,0.00020223,2]
[400413954,1767528644809,-177.762758,0.00020223,2]
[400413955,1767528644818,-151.0,0.00020223,2]
[400413956,1767528644828,-151.0,0.00020223,2]
[400413957,1767528644837,-151.0,0.00020223,2]
[400413958,1767528644848,-454.82744756,0.00020223,4]
[400413959,1767528644857,-454.8319987,0.00020223,4]
[400413960,1767528644867,-628.0,0.00020253,2]
[400413961,1767528644878,-1365.0,0.00020253,2]
[400413962,1767528644887,-714.0,0.00020253,2]
[400413963,1767528644897,-178.0,0.00020253,2]
[400413964,1767528644907,-416.0,0.00020253,2]
[400413965,1767528645000,-155.0,0.00020356,3]
[400413966,1767528645010,-652.31587443,0.000204,10]
[400413967,1767528645020,-454.82744756,0.00020412,4]
[400413968,1767528645029,-454.8319987,0.00020412,4]
[400413969,1767528645039,-36465.78,0.000205,2]
[400413970,1767528645048,-3653.72,0.000205,2]
[400413971,1767528645057,-301.99,0.000205,2]
[400413972,1767528645067,-286.51,0.000205,2]
[400413973,1767528645077,-2000.0,0.000205,7]
[400413974,1767528645086,-600.0,0.00020548,7]
[400413975,1767528645096,-454.82744756,0.00020601,4]
[400413976,1767528645106,-454.8319987,0.00020601,4]
[400413977,1767528645115,-1387.41390941,0.0002061,2]
[400413978,1767528645124,-181.22663179,0.00020726,30]
[400413980,1767528645134,-19832.77135922,0.00021,2]
[400413981,1767528645428,-2044.97081546,0.00021,2]
[400413982,1767528645815,-444.64,0.00012329,2]
[400413985,1767528647079,-3e-08,0.00012329,2]
[400413986,1767528647091,-960.08999997,0.00012329,2]
[400413987,1767528647101,-1651.635425,0.0002,2]
[400413988,1767528647110,-288.31018,0.0002,2]
[400413989,1767528647120,-1651.635425,0.0002,2]
[400413990,1767528647129,-24425.97837252,0.00021,2]
[400413991,1767528647384,-3134.51055932,0.00021,2]
[400413992,1767528647766,-159.31611533,0.00010198,2]
[400413993,1767528647776,-288.31018,0.0002,2]
[400413994,1767528647786,-112.37370467,0.0002,2]
[400413995,1767528647797,-175.93647533,0.0002,2]
[400413996,1767528647808,-26.61272454,0.00021,2]
[400413997,1767528647817,-1000.0,0.00021,7]
[400413998,1767528647827,-1045.0,0.00021,2]
[400413999,1767528647836,-2916.86558551,0.00021,2]
[400414000,1767528647847,-83.13441449,0.00021,2]
[400414001,1767528647857,-151.0,0.00021,2]
[400414002,1767528647866,-151.0,0.00021,2]
[400414003,1767528647877,-151.0,0.00021,2]
[400414004,1767528647888,-151.0,0.00021,2]
[400414005,1767528647897,-151.0,0.00021,2]
[400414006,1767528647907,-151.0,0.00021,2]
[400414007,1767528647917,-151.0,0.00021,2]
[400414008,1767528647927,-151.0,0.00021,2]
[400414009,1767528647937,-164.094965,0.00021,2]
[400414010,1767528647947,-164.094965,0.00021,2]
[400414011,1767528647957,-164.094965,0.00021,2]
[400414012,1767528647967,-164.094965,0.00021,2]
[400414013,1767528647976,-181.542051,0.00021,2]
[400414014,1767528647987,-181.542051,0.00021,2]
[400414015,1767528647996,-151.0,0.00021,2]
[400414016,1767528648006,-181.542051,0.00021,2]
[400414017,1767528648016,-151.0,0.00021,2]
[400414018,1767528648026,-181.542051,0.00021,2]
[400414019,1767528648035,-151.0,0.00021,2]
[400414020,1767528648044,-151.0,0.00021,2]
[400414021,1767528648054,-2878.100982,0.00021,2]
[400414022,1767528648064,-166.709835,0.00021,2]
[400414023,1767528648073,-2878.100982,0.00021,2]
[400414024,1767528648082,-166.709835,0.00021,2]
[400414025,1767528648092,-2878.100982,0.00021,2]
[400414026,1767528648101,-166.709835,0.00021,2]
[400414027,1767528648110,-2878.100982,0.00021,2]
[400414028,1767528648119,-166.709835,0.00021,2]
[400414029,1767528648129,-362.084388,0.00021,2]
[400414030,1767528648138,-362.084388,0.00021,2]
[400414031,1767528648148,-362.084388,0.00021,2]
[400414032,1767528648157,-362.084388,0.00021,2]
[400414033,1767528648167,-1303.673153,0.00021,2]
[400414034,1767528648177,-1303.673153,0.00021,2]
[400414035,1767528648187,-1303.673153,0.00021,2]
[400414036,1767528648197,-256.08266271,0.00021,2]
[400414037,1767528648282,-1047.59049029,0.00021,2]
[400414038,1767528648292,-2000.0,0.00021,7]
[400414039,1767528648302,-1053.68905791,0.0002101,2]
[400414040,1767528651333,189.04456768,9.905e-05,2]
[400414041,1767528669577,500.0,0.00010198,2]
[400414044,1767528669637,500.0,0.00010198,2]
[400414047,1767528669694,459.1163123,0.00010198,2]
[400414052,1767528693884,158.69,8.665e-05,2]
[400414053,1767528694288,211.59,9.041e-05,2]
[400414054,1767528694736,264.49,9.418e-05,2]
[400414055,1767528695138,317.39,9.795e-05,2]
[400414056,1767528695546,370.28,0.00010172,2]
[400414057,1767528695955,423.18,0.00010548,2]
[400414058,1767528696392,476.08,0.00010925,2]
[400414060,1767528766243,172.35,7.988e-05,2]
[400414061,1767528766651,196.97,8.284e-05,2]
[400414062,1767528767049,221.59,8.58e-05,2]
[400414063,1767528767463,246.21,8.876e-05,2]
[400414083,1767528823696,8263.63,0.00010898,2]
[400414084,1767528823724,10000.01,0.00010898,2]
[400414085,1767528823750,10000.01,0.00010898,2]
[400414086,1767528823775,10000.01,0.00010898,2]
[400414087,1767528823800,10000.01,0.00010898,2]
[400414088,1767528823826,10000.01,0.00010898,2]
[400414089,1767528823851,10000.01,0.00010898,2]
[400414090,1767528823875,10000.01,0.00010898,2]
[400414091,1767528823900,10000.01,0.00010898,2]
[400414092,1767528823924,10000.01,0.00010898,2]
[400414094,1767528842688,300.0,0.00010897,2]
[400414096,1767528854718,500.0,0.00010198,2]
[400414098,1767528854752,500.0,0.00010198,2]
[400414122,1767529095543,1200.0,0.00010897,2]
[400414131,1767529114492,500.0,0.00010897,2]
[400414132,1767529114529,421.24694626,0.00010897,2]
[400414133,1767529119916,416.5781294,0.00010897,2]
[400414134,1767529121725,250.14344081,0.00010897,2]
[400414190,1767529185337,500.56240568,0.0001,2]
[400414191,1767529206532,573.0,0.00010898,2]
[400414192,1767529256718,920.88986385,0.00010623,2]
[400414204,1767529303463,153.108,0.0001068,2]
[400414205,1767529335571,500.0,0.00010897,2]
[400414206,1767529335614,500.0,0.00010897,2]
[400414207,1767529335656,500.0,0.00010897,2]
[400414208,1767529335690,500.0,0.00010897,2]
[400414209,1767529335735,500.0,0.00010897,2]
[400414210,1767529335878,500.0,0.00010897,2]
[400414211,1767529335922,500.0,0.00010897,2]
[400414212,1767529336166,264.481214,0.00010897,2]
[400414213,1767529336193,235.518786,0.00010897,2]
[400414214,1767529336245,500.0,0.00010897,2]
[400414215,1767529336276,500.0,0.00010897,2]
[400414216,1767529336439,500.0,0.00010897,2]
[400414217,1767529336609,500.0,0.00010897,2]
[400414218,1767529336646,343.65144487,0.00010897,2]
[400414219,1767529336839,500.0,0.00010897,2]
[400414222,1767529353372,500.0,0.00010897,2]
[400414223,1767529353436,500.0,0.00010897,2]
[400414224,1767529353653,500.0,0.00010897,2]
[400414225,1767529353684,500.0,0.00010897,2]
[400414226,1767529353856,350.0,0.00010897,2]
[400414227,1767529353889,500.0,0.00010897,2]
[400414257,1767529492297,500.0,0.00010897,2]
[400414258,1767529492347,500.0,0.00010897,2]
[400414259,1767529492407,258.05931711,0.00010897,2]
[400414265,1767529515289,2678.5728033,0.00010253,2]
[400414278,1767529536445,500.0,0.00010897,2]
[400414279,1767529536489,432.1817046,0.00010897,2]
[400414311,1767529705407,694.3450576,0.0001,7]
[400414354,1767529805723,573.0,0.00010898,2]
[400414380,1767529831842,-300.0,0.00010898,2]
[400414381,1767529831898,-16085.31648478,0.00010898,2]
[400414389,1767529837920,-461.985,0.00010898,2]
[400414390,1767529837975,-4291.04653668,0.00010898,2]
[400414391,1767529837991,-880597.93197854,0.00010898,2]
[400414392,1767529838001,-368.48448754,0.00010913,2]
[400414393,1767529838011,-500.0,0.00010959,2]
[400414394,1767529838020,-621.76451862,0.00010959,2]
[400414395,1767529838031,-300.0,0.00011115,2]
[400414396,1767529838041,-300.0,0.00011115,2]
[400414397,1767529838052,-300.0,0.00011115,2]
[400414398,1767529838063,-300.0,0.00011115,2]
[400414399,1767529838073,-300.0,0.00011115,2]
[400414400,1767529838084,-300.0,0.00011115,2]
[400414401,1767529838094,-300.0,0.00011115,2]
[400414402,1767529838104,-300.0,0.00011115,2]
[400414403,1767529838114,-300.0,0.00011115,2]
[400414404,1767529838124,-300.0,0.00011115,2]
[400414405,1767529838134,-300.0,0.00011115,2]
[400414406,1767529838144,-300.0,0.00011115,2]
[400414407,1767529838154,-300.0,0.00011115,2]
[400414408,1767529838164,-300.0,0.00011115,2]
[400414409,1767529838174,-300.0,0.00011115,2]
[400414410,1767529838185,-600.0,0.00011115,2]
[400414411,1767529838197,-797.30040588,0.00011115,2]
[400414412,1767529838207,-30959.5565853,0.00011353,2]
[400414413,1767529838217,-2662.7717496,0.0001143,2]
[400414414,1767529838227,-151.0,0.000119,2]
[400414415,1767529838237,-205.94569821,0.00012037,2]
[400414416,1767529838247,-151.0,0.000121,2]
[400414417,1767529838256,-720.0,0.00012227,2]
[400414418,1767529838266,-306.68,0.00012329,2]
[400414419,1767529838276,-255.56,0.00012329,2]
[400414420,1767529838286,-212.97,0.00012329,2]
[400414421,1767529838295,-177.48,0.00012329,2]
[400414422,1767529838305,-887.4,0.00012329,2]
[400414423,1767529838316,-151.0,0.000124,2]
[400414424,1767529838326,-151.0,0.000126,2]
[400414425,1767529838337,-151.0,0.000127,2]
[400414426,1767529838348,-693.3115783,0.0001275,2]
[400414427,1767529838359,-151.0,0.000128,2]
[400414428,1767529838369,-5872.9386734,0.000129,2]
[400414429,1767529838379,-434.81169529,0.00012913,2]
[400414430,1767529838389,-200.0,0.00012999,2]
[400414431,1767529838399,-7137.10260308,0.00013,2]
[400414432,1767529838409,-151.0,0.00013,2]
[400414433,1767529838419,-151.0,0.000132,2]
[400414434,1767529838429,-167.44202628,0.00013273,2]
[400414435,1767529838439,-165.49601273,0.00013273,2]
[400414436,1767529838448,-501.11339928,0.00013273,2]
[400414437,1767529838458,-394.52598303,0.00013273,2]
[400414438,1767529838468,-500.0,0.00013273,2]
[400414439,1767529838478,-500.0,0.00013273,2]
[400414440,1767529838488,-500.0,0.00013273,2]
[400414441,1767529838498,-500.19219879,0.00013273,2]
[400414442,1767529838507,-500.38620023,0.00013273,2]
[400414443,1767529838517,-500.0,0.00013273,2]
[400414444,1767529838527,-500.63153147,0.00013273,2]
[400414445,1767529838537,-500.0,0.00013273,2]
[400414446,1767529838548,-500.0,0.00013273,2]
[400414447,1767529838558,-500.0,0.00013273,2]
[400414448,1767529838568,-500.0,0.00013273,2]
[400414449,1767529838579,-500.0,0.00013273,2]
[400414450,1767529838589,-500.0,0.00013273,2]
[400414451,1767529838600,-500.0,0.00013273,2]
[400414452,1767529838611,-500.0,0.00013273,2]
[400414453,1767529838621,-501.18185428,0.00013273,2]
[400414454,1767529838631,-501.72577192,0.00013273,2]
[400414455,1767529838640,-465.72665652,0.00013273,2]
[400414456,1767529838650,-500.0,0.00013273,2]
[400414457,1767529838660,-500.32827259,0.00013273,2]
[400414458,1767529838670,-217.89027488,0.00013273,2]
[400414459,1767529838679,-500.22122731,0.00013273,2]
[400414460,1767529838691,-500.0,0.00013273,2]
[400414461,1767529838702,-500.0,0.00013273,2]
[400414462,1767529838712,-500.0,0.00013273,2]
[400414463,1767529838721,-500.0,0.00013273,2]
[400414464,1767529838731,-500.0,0.00013273,2]
[400414465,1767529838742,-500.48772774,0.00013273,2]
[400414466,1767529838751,-232.36685052,0.00013273,2]
[400414467,1767529838761,-501.46014836,0.00013273,2]
[400414468,1767529838772,-536.28809741,0.00013273,2]
[400414469,1767529838782,-500.29667581,0.00013273,2]
[400414470,1767529838792,-500.0,0.00013273,2]
[400414471,1767529838802,-500.0,0.00013273,2]
[400414472,1767529838812,-500.0,0.00013273,2]
[400414473,1767529838822,-500.0,0.00013273,2]
[400414474,1767529838832,-500.83974402,0.00013273,2]
[400414475,1767529838842,-605.85604523,0.00013273,2]
[400414476,1767529838851,-500.0,0.00013273,2]
[400414477,1767529838861,-500.0,0.00013273,2]
[400414478,1767529838871,-210.63907392,0.00013273,2]
[400414479,1767529838881,-500.12001375,0.00013273,2]
[400414480,1767529838891,-500.98834763,0.00013273,2]
[400414481,1767529838901,-171.55879211,0.00013273,2]
[400414482,1767529838911,-185.40840266,0.00013273,2]
[400414483,1767529838921,-500.53921028,0.00013273,2]
[400414484,1767529838931,-500.19048745,0.00013273,2]
[400414485,1767529838940,-500.92913972,0.00013273,2]
[400414486,1767529838950,-500.0,0.00013273,2]
[400414487,1767529838959,-500.58173584,0.00013273,2]
[400414488,1767529838969,-864.0,0.00013449,2]
[400414489,1767529838980,-151.0,0.000136,2]
[400414490,1767529838994,-300.0,0.00013673,2]
[400414491,1767529839004,-1130.16,0.00013698,2]
[400414492,1767529839014,-1130.16,0.00013698,2]
[400414493,1767529839024,-1130.16,0.00013698,2]
[400414494,1767529839036,-1130.16,0.00013698,2]
[400414495,1767529839046,-1130.16,0.00013698,2]
[400414496,1767529839056,-1130.16,0.00013698,2]
[400414497,1767529839066,-1130.16,0.00013698,2]
[400414498,1767529839077,-1130.16,0.00013698,2]
[400414499,1767529839087,-1130.16,0.00013698,2]
[400414500,1767529839098,-1130.16,0.00013698,2]
[400414501,1767529839108,-1130.16,0.00013698,2]
[400414502,1767529839119,-1130.16,0.00013698,2]
[400414503,1767529839129,-1130.16,0.00013698,2]
[400414504,1767529839139,-1130.16,0.00013698,2]
[400414505,1767529839149,-1130.16,0.00013698,2]
[400414506,1767529839159,-1130.16,0.00013698,2]
[400414507,1767529839169,-1130.16,0.00013698,2]
[400414508,1767529839179,-1130.16,0.00013698,2]
[400414509,1767529839188,-1130.16,0.00013698,2]
[400414510,1767529839199,-1130.16,0.00013698,2]
[400414511,1767529839209,-1130.16,0.00013698,2]
[400414512,1767529839219,-1130.16,0.00013698,2]
[400414513,1767529839229,-1130.16,0.00013698,2]
[400414514,1767529839239,-1130.23149203,0.00013698,2]
[400414515,1767529839249,-1000.0,0.00013699,2]
[400414516,1767529839259,-12282.7478979,0.00013699,2]
[400414517,1767529839268,-500.0,0.00013699,2]
[400414518,1767529839278,-500.0,0.00013699,2]
[400414519,1767529839288,-500.0,0.00013699,2]
[400414520,1767529839299,-500.0,0.00013699,2]
[400414521,1767529839309,-500.84667986,0.00013699,2]
[400414522,1767529839319,-500.0,0.00013699,2]
[400414523,1767529839329,-500.0,0.00013699,2]
[400414524,1767529839339,-500.0,0.00013699,2]
[400414525,1767529839349,-500.0,0.00013699,2]
[400414526,1767529839359,-500.0,0.00013699,2]
[400414527,1767529839368,-481.66284912,0.00013699,2]
[400414528,1767529839377,-1000.0,0.00013821,2]
[400414529,1767529839388,-1000.0,0.00013821,2]
[400414530,1767529839398,-438.76198679,0.00013821,2]
[400414531,1767529839408,-1000.0,0.00013821,2]
[400414532,1767529839418,-1000.0,0.00013821,2]
[400414533,1767529839430,-1000.0,0.00013821,2]
[400414534,1767529839530,-1000.0,0.00013821,2]
[400414535,1767529839541,-160.0,0.00013823,2]
[400414536,1767529839552,-1041.66666667,0.00013837,2]
[400414537,1767529839562,-5872.93867339,0.00013838,2]
[400414538,1767529839572,-200.0,0.00014,2]
[400414539,1767529839584,-151.0,0.00014,2]
[400414540,1767529839594,-3656.41991183,0.00014175,2]
[400414541,1767529839604,-1903.20995591,0.00014175,2]
[400414543,1767529839615,-5409.62986774,0.00014175,2]
[400414545,1767529839625,-600.0,0.00014221,2]
[400414547,1767529839634,-1000.0,0.00014247,2]
[400414548,1767529839644,-1000.0,0.00014247,2]
[400414549,1767529839654,-1000.0,0.00014247,2]
[400414550,1767529839664,-1000.0,0.00014247,2]
[400414551,1767529839673,-1000.0,0.00014247,2]
[400414552,1767529839683,-1000.0,0.00014247,2]
[400414553,1767529839692,-1000.0,0.00014247,2]
[400414554,1767529839702,-1000.0,0.00014247,2]
[400414555,1767529839711,-1500.0,0.00014368,2]
[400414556,1767529839721,-1500.0,0.00014368,2]
[400414557,1767529839731,-1500.0,0.00014368,2]
[400414558,1767529839740,-854.76768455,0.00014368,2]
[400414559,1767529839750,-1500.0,0.00014368,2]
[400414560,1767529839760,-1500.0,0.00014368,2]
[400414561,1767529839770,-151.0,0.000145,2]
[400414562,1767529839780,-168.0,0.00014592,2]
[400414563,1767529839791,-168.0,0.00014651,2]
[400414564,1767529839800,-900.0,0.00014768,2]
[400414566,1767529839811,-1000.0,0.00014794,2]
[400414567,1767529839820,-1500.0,0.00014795,2]
[400414568,1767529839832,-1167.99783089,0.00014795,2]
[400414569,1767529839843,-1500.0,0.00014795,2]
[400414570,1767529839853,-1500.0,0.00014795,2]
[400414571,1767529839864,-1500.0,0.00014795,2]
[400414573,1767529839875,-248.59476834,0.00014795,2]
[400414574,1767529839886,-1500.0,0.00014795,2]
[400414575,1767529839896,-1500.0,0.00014795,2]
[400414576,1767529839909,-168.0,0.00014817,2]
[400414577,1767529839921,-168.0,0.00014829,2]
[400414578,1767529839931,-151.0,0.000149,2]
[400414579,1767529839941,-501.13890305,0.00014913,2]
[400414580,1767529839951,-1891.0513895,0.00014916,2]
[400414581,1767529839960,-500.0,0.00014916,2]
[400414582,1767529839972,-1098.44792801,0.00014916,2]
[400414583,1767529839983,-2000.0,0.00014916,2]
[400414584,1767529839996,-2000.0,0.00014916,2]
[400414585,1767529840005,-168.0,0.00014996,2]
[400414586,1767529840015,-168.0,0.00015048,2]
[400414587,1767529840024,-175.717707,0.00015068,2]
[400414588,1767529840035,-500.0,0.000151,2]
[400414590,1767529840045,-168.0,0.00015185,2]
[400414592,1767529840055,-7162.83982366,0.00015187,3]
[400414595,1767529840066,-5451.0,0.00015233,2]
[400414596,1767529840076,-168.0,0.00015309,2]
[400414598,1767529840089,-1200.0,0.00015316,2]
[400414600,1767529840099,-1521.26225949,0.00015342,2]
[400414602,1767529840108,-2000.0,0.00015342,2]
[400414604,1767529840119,-2000.0,0.00015342,2]
[400414606,1767529840128,-2000.0,0.00015342,2]
[400414608,1767529840138,-1558.12211568,0.00015342,2]
[400414610,1767529840147,-2000.0,0.00015342,2]
[400414612,1767529840156,-2169.0,0.00015354,2]
[400414614,1767529840166,-1365.0,0.00015354,2]
[400414616,1767529840175,-714.0,0.00015354,2]
[400414618,1767529840185,-194.729,0.00015354,2]
[400414620,1767529840195,-416.0,0.00015354,2]
[400414622,1767529840204,-279.0,0.00015425,3]
[400414624,1767529840214,-151.0,0.00015439,2]
[400414627,1767529840223,-156.587,0.00015439,2]
[400414629,1767529840232,-250.0,0.00015439,2]
[400414632,1767529840242,-574.12855637,0.00015439,2]
[400414635,1767529840251,-151.64128519,0.00015439,2]
[400414638,1767529840260,-250.0,0.00015439,2]
[400414642,1767529840270,-250.0,0.00015439,2]
[400414644,1767529840279,-250.0,0.00015439,2]
[400414648,1767529840288,-27244.91034161,0.00015439,2]
[400414651,1767529840298,-250.0,0.00015439,2]
[400414652,1767529840307,-250.0,0.00015439,2]
[400414654,1767529840317,-250.0,0.00015439,2]